bitfinex-derivatives/quotes_SOLF0:USTF0_20251002
["timestamp","ask_amount","ask_price","bid_price","bid_amount"]
[1759402220779,7.23,225.32,225.29,7.9]
[1759402221177,7.23,225.34,225.29,7.9]
[1759402221372,3.26434539,225.33,225.29,7.9]
[1759402221574,3.26434539,225.32,225.29,7.9]
[1759402221774,10.49434539,225.31,225.29,7.9]
[1759402221974,7.23,225.31,225.29,7.9]
[1759402223075,1.10897423,225.35,225.29,7.27]
[1759402223076,8.77897423,225.35,225.29,7.27]
[1759402223281,3.9912,225.38,225.23,62.1261]
[1759402223282,7.67,225.33,225.27,7.27]
[1759402223578,3.2656777,225.32,225.27,7.27]
[1759402223777,3.2656777,225.31,225.27,7.27]
[1759402223991,7.14,225.29,225.27,7.27]
[1759402224177,7.14,225.29,225.24,7.78]
[1759402224377,7.14,225.29,225.26,11.7733]
[1759402225782,9.26661237,225.35,225.23,3.9937]
[1759402225985,7.14,225.33,225.23,3.9937]
[1759402226278,7.14,225.31,225.23,3.9937]
[1759402226478,3.26588255,225.3,225.23,3.9937]
[1759402226675,3.26588255,225.29,225.23,3.9937]
[1759402226878,7.14,225.29,225.23,3.9937]
[1759402227380,7.14,225.29,225.24,7.78]
[1759402227979,7.14,225.29,225.23,3.9937]
[1759402228174,3.9927,225.3,225.23,3.9937]
[1759402228382,3.26484671,225.29,225.24,7.78]
[1759402228581,3.9927,225.3,225.23,3.9937]
[1759402228777,3.26484671,225.29,225.23,3.9937]
[1759402228976,11.1327,225.3,225.24,7.78]
[1759402229176,3.26484671,225.29,225.22,7.78]
[1759402229379,7.14,225.3,225.22,7.78]
[1759402229587,3.26457767,225.29,225.22,7.78]
[1759402229781,7.14,225.3,225.22,7.78]
[1759402229981,3.26457767,225.29,225.22,7.78]
[1759402230184,7.14,225.3,225.22,7.78]
[1759402230383,3.26441951,225.29,225.22,7.78]
[1759402230584,7.14,225.3,225.26,7.78]
[1759402230785,3.26434582,225.29,225.25,3.9934]
[1759402230986,7.14,225.31,225.26,7.78]
[1759402231186,3.26434361,225.3,225.24,7.78]
[1759402231386,7.14,225.32,225.24,7.78]
[1759402231685,3.26419506,225.31,225.24,7.78]
[1759402231879,3.26419506,225.3,225.24,7.78]
[1759402232078,7.14,225.32,225.24,7.78]
[1759402232281,3.26419212,225.31,225.24,7.78]
[1759402232484,3.26419212,225.3,225.24,7.78]
[1759402232784,7.14,225.38,225.29,2.12661237]
[1759402232988,3.26351689,225.37,225.3,7.78]
[1759402233281,7.14,225.38,225.3,7.78]
[1759402233282,3.26351689,225.36,225.3,7.78]
[1759402233482,3.26351689,225.35,225.3,7.78]
[1759402233688,3.26351689,225.34,225.3,7.78]
[1759402233890,3.26351689,225.33,225.3,7.78]
[1759402234089,7.14,225.37,225.3,7.78]
[1759402234284,3.26374276,225.36,225.3,7.78]
[1759402234484,3.26374276,225.35,225.3,7.78]
[1759402234680,3.26374276,225.34,225.32,7.78]
[1759402234880,3.26374276,225.33,225.32,7.78]
[1759402235989,3.26374276,225.33,225.3,7.78]
[1759402236191,1.10888459,225.36,225.3,7.78]
[1759402236487,10.40417754,225.35,225.29,11.7727]
[1759402236688,3.26417754,225.34,225.3,7.78]
[1759402236882,10.40417754,225.33,225.3,7.78]
[1759402237079,7.14,225.33,225.3,7.78]
[1759402237484,7.14,225.33,225.29,3.9927]
[1759402237685,7.14,225.33,225.3,7.78]
[1759402238492,7.14,225.33,225.29,3.9927]
[1759402238988,7.14,225.33,225.3,7.78]
[1759402239389,7.14,225.31,225.27,11.7731]
[1759402239589,1.10893559,225.39,225.27,11.7731]
[1759402239792,4.37428864,225.38,225.27,11.7731]
[1759402239985,7.14,225.36,225.27,11.7731]
[1759402240181,7.14,225.34,225.27,11.7731]
[1759402240385,3.26535305,225.33,225.27,11.7731]
[1759402240593,7.14,225.31,225.28,7.78]
[1759402241193,7.14,225.31,225.28,11.7729]
[1759402241390,7.14,225.31,225.28,3.9929]
[1759402241589,7.14,225.31,225.29,7.78]
[1759402243595,3.26652451,225.3,225.29,7.78]
[1759402246696,10.40652451,225.3,225.28,11.7729]
[1759402246897,7.14,225.32,225.29,7.78]
[1759402247096,3.26785653,225.31,225.29,7.78]
[1759402247298,3.26785653,225.3,225.29,7.78]
[1759402254100,10.89785653,225.3,225.24,7.43]
[1759402254311,7.63,225.28,225.22,7.43]
[1759402254509,3.26886607,225.27,225.22,7.43]
[1759402254705,7.63,225.28,225.22,7.43]
[1759402254905,7.63,225.26,225.23,7.43]
[1759402255202,2.12661237,225.32,225.2,7.43]
[1759402255508,12.0323297,225.31,225.2,7.43]
[1759402255802,7.63,225.29,225.2,7.43]
[1759402256008,7.63,225.27,225.21,3.9941]
[1759402256200,10.92315264,225.26,225.22,7.43]
[1759402256405,10.92251893,225.25,225.21,7.43]
[1759402256708,7.63,225.25,225.22,7.43]
[1759402257407,7.63,225.25,225.17,2.12661237]
[1759402257408,11.6231,225.28,225.18,7.43]
[1759402257604,3.29185143,225.27,225.22,3.9939]
[1759402257805,7.63,225.25,225.23,7.43]
[1759402258610,7.63,225.28,225.22,7.43]
[1759402258811,3.29122262,225.27,225.2,7.43]
[1759402259009,3.29122262,225.26,225.2,7.43]
[1759402259214,7.63,225.28,225.2,7.43]
[1759402259517,3.29082626,225.27,225.2,7.43]
[1759402259811,7.63,225.28,225.24,7.43]
[1759402260010,3.29072798,225.27,225.23,3.9937]
[1759402260213,7.63,225.28,225.24,7.43]
[1759402260509,3.29063597,225.27,225.24,7.43]
[1759402260714,7.63,225.29,225.24,7.43]
[1759402260908,10.92064966,225.28,225.23,3.9937]
[1759402261109,3.29064966,225.27,225.24,7.43]
[1759402261317,3.29064966,225.26,225.23,3.9937]
[1759402261510,7.63,225.28,225.23,3.9937]
[1759402261711,3.29040164,225.27,225.23,3.9937]
[1759402261919,7.63,225.28,225.23,3.9937]
[1759402262215,3.29035251,225.27,225.23,3.9937]
[1759402262414,7.63,225.28,225.25,7.43]
[1759402262617,3.29011241,225.27,225.25,7.43]
[1759402262817,7.63,225.28,225.25,7.43]
[1759402263018,3.29009964,225.27,225.25,7.43]
[1759402263215,7.63,225.32,225.26,7.43]
[1759402263414,7.63,225.32,225.23,7.43]
[1759402263415,3.29001083,225.31,225.23,7.43]
[1759402263620,3.29001083,225.3,225.23,7.43]
[1759402263818,3.29001083,225.29,225.23,7.43]
[1759402264118,3.29001083,225.28,225.22,2.12661237]
[1759402264319,3.28979774,225.27,225.23,7.43]
[1759402264525,7.63,225.29,225.2,7.43]
[1759402264819,3.28983459,225.28,225.2,7.43]
[1759402265021,3.28983459,225.27,225.2,7.43]
[1759402265222,7.63,225.29,225.2,7.43]
[1759402265419,3.28975741,225.28,225.2,7.43]
[1759402265622,3.28975741,225.27,225.24,7.43]
[1759402265824,3.9927,225.3,225.24,7.43]
[1759402266020,7.63,225.28,225.24,7.43]
[1759402266220,10.91975741,225.27,225.24,7.43]
[1759402266522,7.63,225.27,225.24,7.43]
[1759402267625,3.9927,225.3,225.24,7.43]
[1759402267820,3.28956758,225.29,225.23,3.9938]
[1759402268125,3.28956758,225.28,225.23,11.4238]
[1759402268321,7.63,225.26,225.23,11.4238]
[1759402268525,7.63,225.26,225.24,7.43]
[1759402269018,7.63,225.26,225.19,15.5580052]
[1759402269019,1.10919553,225.29,225.21,11.4242]
[1759402269226,64.22461237,225.34,225.21,11.4242]
[1759402269227,7.63,225.27,225.21,11.4242]
[1759402269421,7.63,225.25,225.21,7.43]
[1759402269626,7.63,225.28,225.21,7.43]
[1759402269823,3.28920827,225.27,225.21,7.43]
[1759402270023,7.63,225.25,225.21,7.43]
[1759402270228,7.63,225.3,225.21,7.43]
[1759402270525,7.63,225.28,225.21,7.43]
[1759402270727,4.39808824,225.29,225.21,7.43]
[1759402270728,3.28880783,225.27,225.21,7.43]
[1759402271026,3.28880783,225.26,225.21,7.43]
[1759402271228,7.63,225.24,225.21,7.43]
[1759402272627,7.63,225.24,225.21,11.4241]
[1759402280036,7.63,225.24,225.21,3.9941]
[1759402280229,7.63,225.24,225.21,11.4241]
[1759402282829,7.63,225.24,225.21,3.9941]
[1759402283030,7.63,225.24,225.22,7.53]
[1759402292745,3.30648882,225.23,225.22,7.53]
[1759402295141,7.63,225.24,225.22,7.53]
[1759402296242,3.30860651,225.23,225.22,7.53]
[1759402296747,3.30860651,225.23,225.22,11.524]
[1759402297048,3.30860651,225.23,225.22,12.8857617]
[1759402298148,7.24,225.31,225.25,7.75]
[1759402298448,7.24,225.27,225.21,7.75]
[1759402298641,7.24,225.25,225.21,7.75]
[1759402298838,10.5501774,225.24,225.21,7.75]
[1759402299038,3.3101774,225.23,225.18,1.3617617]
[1759402299246,7.24,225.24,225.18,1.3617617]
[1759402299551,3.26282239,225.23,225.2,3.9943]
[1759402299847,7.24,225.24,225.2,3.9943]
[1759402300143,3.26282166,225.23,225.2,3.9943]
[1759402300449,7.24,225.24,225.2,3.9943]
[1759402300744,3.26290621,225.23,225.2,3.9943]
[1759402301044,7.24,225.26,225.22,3.994]
[1759402301249,3.22597673,225.25,225.22,7.75]
[1759402301449,1.1092869,225.28,225.22,7.75]
[1759402301641,3.2259664,225.27,225.22,7.75]
[1759402301842,3.2259664,225.26,225.22,7.75]
[1759402302048,3.2259664,225.25,225.22,7.75]
[1759402302348,1.1092869,225.28,225.22,7.75]
[1759402302645,3.22599107,225.27,225.23,3.9937]
[1759402302847,1.1092869,225.28,225.23,3.9937]
[1759402302848,3.22599107,225.26,225.23,3.9937]
[1759402303042,3.22599107,225.25,225.24,9.1117617]
[1759402303243,4.95879406,225.34,225.24,9.1117617]
[1759402303244,7.24,225.32,225.25,7.75]
[1759402303543,4.33437527,225.31,225.25,7.75]
[1759402303744,4.33437527,225.3,225.24,1.3617617]
[1759402303944,7.24,225.32,225.24,1.3617617]
[1759402303945,3.22524398,225.29,225.25,7.75]
[1759402304149,7.24,225.32,225.27,7.75]
[1759402304150,3.22524398,225.28,225.27,7.75]
[1759402305248,1.10913129,225.31,225.27,7.75]
[1759402305448,10.46449366,225.3,225.27,7.75]
[1759402305648,3.22449366,225.29,225.27,7.75]
[1759402305850,3.22449366,225.28,225.27,7.75]
[1759402306445,7.24,225.3,225.27,7.75]
[1759402306747,3.2242908,225.29,225.27,7.75]
[1759402307048,7.24,225.33,225.27,7.75]
[1759402307244,4.33318549,225.32,225.27,7.75]
[1759402307442,7.24,225.3,225.27,7.75]
[1759402307651,3.2237754,225.29,225.27,7.75]
[1759402307847,7.24,225.3,225.27,7.75]
[1759402308050,3.22377466,225.29,225.27,7.75]
[1759402308346,7.24,225.3,225.27,7.75]
[1759402308552,3.22354286,225.29,225.27,7.75]
[1759402308745,7.24,225.3,225.27,7.75]
[1759402308945,3.22354286,225.29,225.27,11.743]
[1759402309144,7.24,225.31,225.27,11.743]
[1759402309350,10.46354213,225.3,225.28,7.75]
[1759402309552,3.22354213,225.29,225.28,7.75]
[1759402310050,7.24,225.3,225.28,7.75]
[1759402311145,7.24,225.32,225.28,7.75]
[1759402311346,7.24,225.3,225.27,11.743]
[1759402311852,7.24,225.3,225.28,7.75]
[1759402312150,7.24,225.3,225.25,5.3552617]
[1759402312349,7.24,225.32,225.25,13.1052617]
[1759402312555,3.22215174,225.31,225.25,13.1052617]
[1759402312854,10.46215174,225.3,225.26,7.75]
[1759402313047,7.24,225.3,225.26,7.75]
[1759402313554,7.24,225.3,225.25,5.3552617]
[1759402313859,7.24,225.3,225.26,7.89]
[1759402314159,7.24,225.3,225.25,3.9935]
[1759402314855,7.24,225.3,225.26,3.9932]
[1759402315051,7.24,225.3,225.27,7.89]
[1759402315857,5.3539617,225.33,225.27,7.89]
[1759402316059,3.22100488,225.32,225.27,7.89]
[1759402316355,7.53,225.3,225.27,7.89]
[1759402316559,5.3539617,225.33,225.27,7.89]
[1759402316855,3.2206811,225.32,225.27,7.89]
[1759402317051,7.53,225.3,225.27,7.89]
[1759402317258,5.3539617,225.33,225.27,7.89]
[1759402317455,3.22038388,225.32,225.27,7.89]
[1759402317654,7.53,225.3,225.27,7.89]
[1759402318860,7.53,225.32,225.27,7.89]
[1759402319062,7.53,225.3,225.27,7.89]
[1759402319263,7.53,225.32,225.27,7.89]
[1759402319458,1.3617617,225.29,225.23,7.89]
[1759402319763,7.53,225.27,225.23,7.89]
[1759402319964,1.3617617,225.29,225.23,7.89]
[1759402320262,7.53,225.27,225.23,7.89]
[1759402320462,7.53,225.28,225.23,7.89]
[1759402320664,7.53,225.28,225.23,11.8837]
[1759402320859,5.3546617,225.29,225.23,11.8837]
[1759402321065,3.22030861,225.28,225.23,11.8837]
[1759402321265,7.53,225.28,225.23,11.8837]
[1759402321966,5.3546617,225.29,225.23,11.8837]
[1759402322162,3.22036662,225.28,225.23,11.8837]
[1759402322367,7.53,225.28,225.23,11.8837]
[1759402322760,5.3546617,225.29,225.23,11.8837]
[1759402322965,3.2204832,225.28,225.23,11.8837]
[1759402323172,7.53,225.28,225.23,11.8837]
[1759402323573,5.3546617,225.29,225.23,3.9937]
[1759402323774,3.22060765,225.28,225.23,3.9937]
[1759402324074,5.3546617,225.29,225.24,7.89]
[1759402324269,7.53,225.27,225.24,7.89]
[1759402324474,7.53,225.28,225.24,7.89]
[1759402324778,1.3617617,225.25,225.19,7.89]
[1759402324973,7.53,225.24,225.19,7.89]
[1759402325171,7.53,225.24,225.17,7.89]
[1759402325573,7.53,225.24,225.18,3.9947]
[1759402325874,12.8853617,225.25,225.19,7.89]
[1759402330787,7.53,225.25,225.19,9.2517617]
[1759402331289,7.53,225.28,225.19,9.2517617]
[1759402331584,3.21920671,225.27,225.19,9.2517617]
[1759402331787,3.21920671,225.26,225.22,7.89]
[1759402331985,7.53,225.28,225.22,7.89]
[1759402332288,10.74909147,225.27,225.22,7.89]
[1759402332489,10.74909147,225.26,225.22,7.89]
[1759402332687,7.53,225.26,225.22,7.89]
[1759402332887,7.53,225.26,225.21,1.3617617]
[1759402333385,7.53,225.26,225.22,7.89]
[1759402333582,7.53,225.26,225.23,3.9938]
[1759402333781,7.53,225.28,225.24,7.89]
[1759402334087,7.53,225.26,225.24,7.89]
[1759402335387,7.53,225.28,225.21,7.89]
[1759402335587,3.21930448,225.27,225.21,7.89]
[1759402335782,7.53,225.28,225.21,7.89]
[1759402335988,7.53,225.26,225.21,7.89]
[1759402336191,7.53,225.28,225.21,7.89]
[1759402336391,3.21940137,225.27,225.21,7.89]
[1759402336588,7.53,225.25,225.21,7.89]
[1759402337495,7.53,225.25,225.22,3.9939]
[1759402337790,7.53,225.26,225.19,9.2517617]
[1759402338692,7.53,225.26,225.2,3.9943]
[1759402340290,5.3550617,225.27,225.2,3.9943]
[1759402340486,3.21991678,225.26,225.21,7.89]
[1759402340692,12.8850617,225.27,225.21,7.89]
[1759402340883,3.21991678,225.26,225.2,3.9943]
[1759402341083,7.53,225.26,225.2,3.9943]
[1759402341384,5.3550617,225.27,225.21,3.9941]
[1759402341588,7.53,225.25,225.22,7.89]
[1759402342086,7.53,225.26,225.22,7.89]
[1759402342490,7.12,225.26,225.22,7.89]
[1759402342691,3.9933,225.27,225.22,7.89]
[1759402342887,7.12,225.25,225.22,7.89]
[1759402343094,7.12,225.25,225.22,11.8839]
[1759402344289,7.12,225.25,225.22,3.9939]
[1759402344491,7.12,225.25,225.23,11.2338]
[1759402344794,7.71,225.26,225.17,7.24]
[1759402344983,7.71,225.24,225.17,7.24]
[1759402345188,7.71,225.24,225.19,3.9945]
[1759402345488,7.71,225.25,225.19,11.2345]
[1759402345883,7.71,225.25,225.2,3.9943]
[1759402346089,7.71,225.26,225.2,7.24]
[1759402346291,3.220173,225.25,225.16,7.24]
[1759402346483,7.71,225.26,225.16,7.24]
[1759402346687,3.22007048,225.25,225.16,20.67169976]
[1759402346988,7.71,225.26,225.17,7.24]
[1759402347188,3.22005763,225.25,225.17,7.24]
[1759402347390,7.71,225.26,225.17,7.24]
[1759402347590,3.2199623,225.25,225.21,3.9941]
[1759402347898,7.71,225.24,225.21,11.2341]
[1759402352697,7.71,225.25,225.19,3.9945]
[1759402353593,3.22051007,225.24,225.19,3.9945]
[1759402353891,3.9934,225.26,225.2,7.24]
[1759402354194,7.71,225.24,225.19,3.9945]
[1759402354592,3.9936,225.25,225.19,3.9945]
[1759402354798,7.71,225.23,225.14,3.78478526]
[1759402355093,7.71,225.23,225.15,7.24]
[1759402355292,7.71,225.23,225.18,3.9946]
[1759402355693,7.71,225.23,225.19,7.24]
[1759402355890,7.71,225.23,225.14,65.93558526]
[1759402356093,2.12758585,225.31,225.14,65.93558526]
[1759402356094,7.71,225.26,225.17,7.24]
[1759402356396,3.22073864,225.25,225.17,7.24]
[1759402356598,7.71,225.26,225.17,7.24]
[1759402356894,3.22106384,225.25,225.17,7.24]
[1759402357195,7.71,225.26,225.22,3.9939]
[1759402357384,10.93106384,225.25,225.22,11.2339]
[1759402357584,7.71,225.25,225.22,11.2339]
[1759402358192,7.71,225.27,225.23,7.24]
[1759402358393,10.93145469,225.26,225.23,7.24]
[1759402358593,3.22145469,225.25,225.23,7.24]
[1759402358796,7.71,225.26,225.23,7.24]
[1759402359096,3.22190002,225.25,225.23,7.24]
[1759402359397,3.22234354,225.24,225.23,7.24]
[1759402361594,3.9929,225.29,225.23,7.24]
[1759402361895,4.31855427,225.28,225.23,7.24]
[1759402362091,7.71,225.26,225.23,7.24]
[1759402362290,10.9192555,225.25,225.23,7.24]
[1759402362493,7.71,225.25,225.23,7.24]
[1759402363288,1.10929877,225.27,225.22,11.2339]
[1759402363489,7.71,225.25,225.22,11.2339]
[1759402364199,7.71,225.25,225.23,7.24]
[1759402364390,3.21217468,225.24,225.23,7.24]
[1759402365595,7.71,225.3,225.25,3.9935]
[1759402365798,12.03123155,225.29,225.26,7.24]
[1759402365999,10.92201071,225.28,225.26,7.24]
[1759402366295,3.21201071,225.27,225.26,7.24]
[1759402366699,7.71,225.28,225.26,7.24]
[1759402367594,7.71,225.29,225.23,11.2338]
[1759402367796,7.71,225.27,225.23,3.9938]
[1759402368004,7.71,225.27,225.24,7.24]
[1759402368203,7.71,225.27,225.23,3.9938]
[1759402368406,7.71,225.27,225.24,3.9936]
[1759402368694,1.10914693,225.3,225.24,3.9936]
[1759402368902,7.71,225.28,225.25,7.24]
[1759402370004,7.71,225.33,225.26,3.9933]
[1759402370202,4.27083431,225.32,225.26,3.9933]
[1759402370398,7.71,225.3,225.27,7.24]
[1759402370705,3.16172622,225.29,225.27,7.24]
[1759402370893,7.71,225.3,225.27,7.24]
[1759402371100,3.16119282,225.29,225.27,7.24]
[1759402371298,7.71,225.3,225.27,7.24]
[1759402371499,3.16075247,225.29,225.27,7.24]
[1759402371797,7.71,225.3,225.27,7.24]
[1759402371997,3.16075247,225.29,225.27,7.24]
[1759402372197,7.71,225.3,225.28,7.24]
[1759402372599,7.71,225.31,225.25,11.2334]
[1759402372806,7.71,225.29,225.26,7.24]
[1759402373004,7.71,225.31,225.2,7.24]
[1759402373207,7.71,225.29,225.23,3.9938]
[1759402373406,7.71,225.27,225.23,11.2338]
[1759402373608,7.71,225.27,225.24,7.24]
[1759402373808,7.71,225.32,225.24,7.24]
[1759402374107,7.43,225.3,225.24,7.24]
[1759402374307,7.43,225.28,225.24,7.24]
[1759402374509,7.43,225.31,225.24,7.24]
[1759402374705,7.43,225.29,225.24,7.24]
[1759402374904,7.43,225.27,225.24,7.24]
[1759402375107,3.993,225.28,225.21,3.9942]
[1759402375304,10.59068455,225.27,225.21,3.9942]
[1759402375499,3.16072343,225.26,225.21,11.1242]
[1759402375808,7.43,225.27,225.21,11.1242]
[1759402376009,7.43,225.25,225.21,11.1242]
[1759402376210,7.43,225.27,225.21,11.1242]
[1759402376400,3.16072416,225.26,225.21,11.1242]
[1759402376606,7.43,225.27,225.21,11.1242]
[1759402376810,7.43,225.25,225.21,11.1242]
[1759402377009,7.43,225.27,225.21,11.1242]
[1759402377210,7.43,225.25,225.21,11.1242]
[1759402377811,3.16079041,225.26,225.21,11.1242]
[1759402378010,7.43,225.27,225.21,11.1242]
[1759402378311,7.43,225.25,225.22,7.13]
[1759402379308,3.993,225.28,225.22,7.13]
[1759402379508,3.16078931,225.27,225.22,7.13]
[1759402379700,7.43,225.25,225.22,7.13]
[1759402379901,7.43,225.27,225.21,3.9942]
[1759402380100,7.43,225.25,225.22,7.13]
[1759402380305,7.43,225.26,225.19,11.1245]
[1759402380504,2.12758585,225.3,225.19,11.1245]
[1759402380505,7.43,225.24,225.19,11.1245]
[1759402380702,7.43,225.27,225.19,7.13]
[1759402380907,7.43,225.25,225.19,7.13]
[1759402381207,3.16114467,225.24,225.19,7.13]
[1759402381408,7.43,225.22,225.19,7.13]
[1759402382311,7.43,225.22,225.18,3.9946]
[1759402382509,3.16079013,225.24,225.15,7.13]
[1759402382709,3.16079013,225.23,225.2,7.13]
[1759402382910,7.43,225.25,225.2,7.13]
[1759402383112,7.43,225.23,225.2,7.13]
[1759402384716,7.43,225.23,225.19,3.9945]
[1759402384914,7.43,225.23,225.2,7.13]
[1759402385110,7.43,225.23,225.2,3.9942]
[1759402385317,7.43,225.23,225.21,7.13]
[1759402386814,7.43,225.24,225.2,11.1242]
[1759402387015,7.43,225.25,225.2,11.1242]
[1759402387215,7.43,225.23,225.2,11.1242]
[1759402388013,7.43,225.23,225.2,7.13]
[1759402389012,3.16001904,225.24,225.2,7.13]
[1759402389221,7.43,225.25,225.2,7.13]
[1759402389416,7.43,225.23,225.2,7.13]
[1759402390012,3.15995385,225.24,225.2,3.9943]
[1759402390221,7.43,225.24,225.21,7.13]
[1759402391617,3.12506446,225.26,225.2,3.9943]
[1759402391820,7.43,225.24,225.21,7.13]
[1759402392819,3.12503678,225.26,225.22,7.13]
[1759402393021,1.10937702,225.27,225.21,3.9941]
[1759402393022,3.12503678,225.25,225.21,3.9941]
[1759402393223,7.43,225.26,225.22,7.13]
[1759402393521,10.55501066,225.25,225.22,7.13]
[1759402393720,7.43,225.25,225.22,7.13]
[1759402394719,10.55496461,225.25,225.22,7.13]
[1759402394921,7.43,225.25,225.22,7.13]
[1759402399620,3.12485104,225.26,225.22,7.13]
[1759402399826,3.9933,225.27,225.22,7.13]
[1759402400027,7.43,225.25,225.21,11.1241]
[1759402400227,7.43,225.26,225.21,11.1241]
[1759402401128,10.55508781,225.25,225.19,3.9945]
[1759402401328,7.43,225.25,225.19,3.9945]
[1759402402518,7.56,225.23,225.19,3.9945]
[1759402402723,7.56,225.24,225.19,11.8245]
[1759402402924,64.23658585,225.3,225.19,7.83]
[1759402403120,7.56,225.26,225.17,3.9949]
[1759402403327,7.56,225.24,225.17,3.9949]
[1759402403830,7.56,225.24,225.17,11.8249]
[1759402404632,11.5538,225.24,225.17,11.8249]
[1759402406028,7.68,225.22,225.17,7.83]
[1759402406233,1.36250702,225.22,225.15,3.9952]
[1759402406433,7.68,225.21,225.15,3.9952]
[1759402407129,7.68,225.21,225.16,3.995]
[1759402407829,1.36250702,225.22,225.16,3.995]
[1759402408034,7.68,225.22,225.16,7.2]
[1759402409131,7.68,225.22,225.18,3.9946]
[1759402409334,7.68,225.22,225.18,11.1946]
[1759402410039,3.12400029,225.23,225.18,11.1946]
[1759402410239,7.68,225.23,225.18,11.1946]
[1759402410434,5.35630702,225.24,225.18,11.1946]
[1759402410635,7.68,225.23,225.18,11.1946]
[1759402411239,10.80359189,225.23,225.18,11.1946]
[1759402411439,7.68,225.23,225.18,11.1946]
[1759402411640,3.12359763,225.23,225.18,11.1946]
[1759402411835,5.35630702,225.24,225.19,7.2]
[1759402412338,7.68,225.23,225.19,7.2]
[1759402412633,5.35630702,225.24,225.19,7.2]
[1759402412841,7.68,225.23,225.19,7.2]
[1759402413038,5.35630702,225.24,225.19,7.2]
[1759402413642,7.68,225.23,225.19,7.2]
[1759402414131,5.35630702,225.24,225.19,7.2]
[1759402414533,5.35630702,225.24,225.19,11.1945]
[1759402414734,7.68,225.23,225.2,7.2]
[1759402414942,1.36250702,225.26,225.19,7.2]
[1759402414943,7.68,225.26,225.19,7.2]
[1759402415142,3.12435301,225.25,225.21,7.2]
[1759402415342,3.12484531,225.24,225.2,1.36250702]
[1759402415543,3.12484531,225.25,225.21,7.2]
[1759402415844,3.12484531,225.24,225.23,11.1939]
[1759402416141,3.12484531,225.25,225.23,11.1939]
[1759402416342,7.68,225.26,225.23,11.1939]
[1759402416540,3.12544153,225.25,225.23,11.1939]
[1759402416742,7.68,225.26,225.23,11.1939]
[1759402416942,3.12544153,225.25,225.23,11.1939]
[1759402417141,8.78940928,225.26,225.23,11.1939]
[1759402417339,3.12552272,225.25,225.24,7.2]
[1759402418939,3.12552272,225.25,225.23,11.1939]
[1759402419144,8.78940928,225.26,225.23,7.2]
[1759402419436,4.23627898,225.25,225.23,7.2]
[1759402419642,7.68,225.26,225.23,7.2]
[1759402419842,3.12732365,225.25,225.23,7.2]
[1759402420144,7.68,225.26,225.23,7.2]
[1759402420345,3.12737268,225.25,225.23,7.2]
[1759402420543,8.78936445,225.26,225.23,7.2]
[1759402420844,3.12766341,225.25,225.23,7.2]
[1759402421046,8.78936445,225.26,225.23,7.2]
[1759402421244,3.12904073,225.25,225.23,7.2]
[1759402421440,8.78936445,225.26,225.24,7.2]